Cogmind - Beta 16.1 @@@ ROGUE MODE // 2026.04.04 @ 12:19:13 Player: daxter767676 Result: Destroyed by X-67 Chaingunner with Heavy Machine Gun Performance ------------- Evolutions (4) 2000 Regions Visited (4) 800 Robots Destroyed (35) 175 Value Destroyed (989) 989 Prototype IDs (1) 20 Alien Tech Used (0) 0 Bonus (0) 0 TOTAL SCORE: 3984 Bonus ------- None Cogmind --------- Core Integrity 0/850 Matter 79/300 Energy 43/100 System Corruption 7% Temperature Cool (2) Movement Walking (120) Location -6/Factory Parts ------- > --- POWER (2) -------- (None) > --- PROPULSION (4) --- Flexi-carbon Leg > --- UTILITY (6) ------ (None) > --- WEAPON (3) ------- Maul Greatsword > --- INVENTORY (5) ---- Cooling System Relay Coupler [Heavy] (2) Relay Coupler [Behemoth] (3) Remote Datajack Remote Datajack Peak State ------------ > --- POWER ------------ Ion Engine Fission Core > --- PROPULSION ------- Wheel Wheel Compact Wheel > --- UTILITY ---------- Improved Heat Sink Cooling System Cooling System Huge Storage Unit Layered Light Armor Plating Hacking Suite > --- WEAPON ----------- Spread Laser Flak Cannon Shock Maul > --- INVENTORY -------- Ion Engine Ion Engine Light Fission Core Aluminum Leg Aluminum Leg Aluminum Leg Improved Heat Sink Cooling System Cooling System Targeting Computer Relay Coupler [Heavy] Relay Coupler [Heavy] Relay Coupler [Heavy] Relay Coupler [Heavy] Relay Coupler [Behemoth] Relay Coupler [Behemoth] Relay Coupler [Behemoth] Spread Laser Spread Laser Battle Cannon Improved Grenade Launcher Remote Datajack Remote Datajack Remote Datajack Maul [Rating: 43] Favorites ----------- Power Light Ion Engine Engine Light Ion Engine Power Core Fission Core Propulsion Wheel Leg Aluminum Leg Wheel Wheel Hover Unit Gravmag System Utility Cooling System Device Cooling System Storage Huge Storage Unit Processor Target Analyzer Hackware Hacking Suite Protection Improved Weapon Shielding Weapon Spread Laser Energy Gun Spread Laser Ballistic Gun Light Assault Rifle Ballistic Cannon Battle Cannon Launcher Improved Grenade Launcher Special Weapon Remote Datajack Impact Weapon Shock Maul Slashing Weapon Greatsword Build | -11 -10 -10 -9 -6 ------- Run | Yrd Mat Sub Scr Fac Slots Evolved 8 | . . . . 8 Power 1 | . . . . 1 Propulsion 2 | . . . . 2 Utility 4 | . . . . 4 Weapon 1 | . . . . 1 Parts Attached 44 | . 7 . 1 36 Power 5 | . . . . 5 Engine 3 | . . . . 3 Core 2 | . . . . 2 Reactor . | . . . . . Propulsion 11 | . 2 . . 9 Treads . | . . . . . Leg 4 | . . . . 4 Wheel 5 | . 2 . . 3 Hover 2 | . . . . 2 Flight . | . . . . . Utility 13 | . 2 . . 11 Device 8 | . 1 . . 7 Storage 1 | . 1 . . . Processor 1 | . . . . 1 Hackware 1 | . . . . 1 Protection 2 | . . . . 2 Artifact . | . . . . . Weapon 15 | . 3 . 1 11 Energy Gun 6 | . 2 . . 4 Energy Cannon . | . . . . . Ballistic Gun 1 | . 1 . . . Ballistic Cannon 2 | . . . 1 1 Launcher 1 | . . . . 1 Special Weapon 2 | . . . . 2 Impact Weapon 2 | . . . . 2 Slashing Weapon 1 | . . . . 1 Piercing Weapon . | . . . . . Special Melee Weapon . | . . . . . Unidentified Prototypes . | . . . . . Parts Lost 34 | . 1 . . 33 Power 6 | . . . . 6 Propulsion 10 | . . . . 10 Utility 9 | . . . . 9 Weapon 9 | . 1 . . 8 Highest Loss Streak 14 | . 1 . . 14 To Critical Strikes . | . . . . . Average Backups 21 | 6 19 24 24 20 Power 2 | 1 2 3 3 1 Propulsion 3 | 4 5 7 6 1 Utility 9 | . 5 8 10 10 Weapon 4 | 1 5 6 4 4 Tool/Special . | . . . . . Unused Backups 28 | 6 5 . 5 12 Power 2 | 1 . . . 1 Propulsion 6 | 2 2 . 1 1 Utility 12 | 1 1 . 2 8 Weapon 6 | 2 2 . 2 . Tool/Special 2 | . . . . 2 Average Slot Usage (%) 85 | . 97 100 100 69 Engine 9 | . 14 14 14 3 Leg 3 | . 3 . . 4 Wheel 18 | . 24 28 28 8 Hover 1 | . . . . 2 Device 13 | . 13 14 14 13 Storage 10 | . 14 14 14 5 Hackware 2 | . . . . 5 Protection 1 | . . . . 2 Energy Gun 11 | . 18 14 14 7 Ballistic Gun 4 | . 8 14 7 . Ballistic Cannon 3 | . . . 6 3 Impact Weapon 1 | . . . . 2 Peak Build Rating 43 | 7 12 12 16 43 Average Rating 20 | 6 11 12 14 30 On Entrance 10 | 6 7 12 12 16 Avg Prop Armor Cover (%) 13 | . . . . 13 Naked Turns . | . . . . . Heaviest Build 116 | 11 90 89 91 116 Greatest Support 46 | 20 26 26 26 46 Greatest Overweight (x) 10 | . 3 3 3 10 Average Overweight (x) 3 | . 2 3 3 4 Largest Inventory Capacity 25 | 8 25 25 25 25 Average Capacity 24 | 8 23 25 25 24 Most Carried 25 | 8 24 24 25 25 Average Carried 21 | 6 19 24 24 21 Final Capacity 25 | 8 25 25 25 5 Final Carried 25 | 8 24 24 25 5 Class Distribution -------------------- 79% | Mutant 10% | Scavenger-Gunner 8% | Gunner Dominant Class ---------------- Mutant | -10/Materials Mutant | -10/Subcaves Mutant | -9/Scraptown Mutant | -6/Factory Resources | -11 -10 -10 -9 -6 ----------- Run | Yrd Mat Sub Scr Fac Matter Collected 723 | 210 60 . 20 433 Remotely . | . . . . . Salvage Created 1176 | 168 342 . . 666 Parts 51 | 13 16 . . 22 Haulers Intercepted . | . . . . . Recyclers Shooed 4 | 1 . . . 3 Parts Field Recycled . | . . . . . Retrieved Matter . | . . . . . Parts Self-Destructed . | . . . . . Prevented . | . . . . . Parts Restored . | . . . . . Kills | -11 -10 -10 -9 -6 ------- Run | Yrd Mat Sub Scr Fac Combat Hostiles Destroyed 21 | . 10 . . 11 Melee 2 | . . . . 2 Guns 9 | . 8 . . 1 Cannons 5 | . . . . 5 AOE 3 | . 2 . . 1 Classes Destroyed 10 | 2 3 . . 5 Worker 2 | . . . . 2 Builder 2 | . . . . 2 Tunneler 3 | 3 . . . . Recycler 5 | 1 1 . . 3 Watcher 2 | . 1 . . 1 Swarmer 7 | . 5 . . 2 Grunt 6 | . 5 . . 1 Sentry 3 | . . . . 3 Specialist 1 | . . . . 1 Programmer 4 | . . . . 4 Best Kill Streak 5 | 2 5 . . 4 Combat Bots Only 3 | . 3 . . 3 Max Kills in Single Turn 3 | 1 2 . . 3 Gunslinging . | . . . . . Exploded 2 | . 2 . . 1 Melee 1 | . . . . 1 Uniques/NPCs Destroyed . | . . . . . Combat | -11 -10 -10 -9 -6 -------- Run | Yrd Mat Sub Scr Fac Hostile Shots Fired 449 | . 36 . . 413 Missed 157 | . 10 . . 147 Hits 292 | . 26 . . 266 Projectile 292 | . 26 . . 266 AOE 1 | . . . . 1 Critical Strikes 3 | . . . . 3 Part Disruptions 1 | . . . . 1 Actively Blocked 1 | . . . . 1 Damage Taken 3944 | . 245 . . 3699 Core 922 | . 54 . . 868 Absorbed by Shields . | . . . . . Redirected to Shielding 108 | . . . . 108 Core Remaining (%) 89 | 100 . . 78 . Volleys Fired 100 | 10 20 . . 70 Largest 3 | 2 2 . . 3 Hottest 148 | 60 105 . . 148 Shots Fired 164 | 20 35 . . 109 Gun 108 | 20 35 . . 53 Cannon 50 | . . . . 50 Launcher 5 | . . . . 5 Special 1 | . . . . 1 Kinetic 60 | 10 . . . 50 Thermal 68 | . 20 . . 48 Explosive 5 | . . . . 5 Electromagnetic 30 | 10 15 . . 5 Robot Hit Streak 11 | 5 4 . . 11 Robot Miss Streak 13 | 2 11 . . 13 Penetration Max . | . . . . . Secondary Targets 3 | . 3 . . . Max Gunslinging Chain 1 | . 1 . . . Shots Hit Robots 144 | 14 26 . . 104 Core Hits 118 | 6 28 . . 84 Critical Kills 1 | . . . . 1 Critical Parts Destroyed 7 | . . . . 7 Critical Strikes 9 | . . . . 9 Blast 1 | . . . . 1 Smash 8 | . . . . 8 Melee Attacks 19 | . . . . 19 Impact 19 | . . . . 19 Slashing . | . . . . . Piercing . | . . . . . Sneak Attacks 3 | . . . . 3 Combat Hostiles . | . . . . . Follow-up Attacks . | . . . . . Damage Inflicted 3397 | 213 384 . . 2800 Guns 1112 | 138 312 . . 662 Cannons 823 | . . . . 823 Explosions 671 | 75 72 . . 524 Melee 791 | . . . . 791 Ramming . | . . . . . Kinetic 882 | 59 . . . 823 Thermal 1313 | 75 263 . . 975 Explosive 194 | . . . . 194 Electromagnetic 217 | 79 121 . . 17 Impact 791 | . . . . 791 Slashing . | . . . . . Piercing . | . . . . . Highest Corruption 7 | . . . . 7 Average Corruption 2 | . . . . 2 Corruption Purged . | . . . . . Corruption Blocked . | . . . . . Effects 21 | . . . . 21 Message Errors 3 | . . . . 3 Matter Fused 10 | . . . . 10 Heat Flow Errors 3 | . . . . 3 Energy Discharges 1 | . . . . 1 Parts Rejected 1 | . . . . 1 Data Loss (minor) 2 | . . . . 2 Weapon Failures 1 | . . . . 1 Overload Shots . | . . . . . Overflow Damage 625 | . . . . 625 Projectiles . | . . . . . Explosions 98 | . . . . 98 Melee 527 | . . . . 527 Knockbacks 19 | . . . . 19 Impact 1 | . . . . 1 Kinetic 17 | . . . . 17 Secondary 1 | . . . . 1 Self-Inflicted Damage 191 | . . . . 191 Shots 2 | . . . . 2 Rammed . | . . . . . Targets Rammed . | . . . . . Kicked . | . . . . . Crushed . | . . . . . Highest Temperature 225 | 40 . . . 225 Average Temperature 69 | 19 . . . 144 Received Heat Transfer 546 | . 60 . . 486 Effects 1 | . . . . 1 Energy Bleed 1 | . . . . 1 Siege Activations . | . . . . . Martial Activations . | . . . . . Shielding Activations . | . . . . . Robots Disrupted . | . . . . . Combat Hostiles . | . . . . . Robots Corrupted 4 | . . . . 4 Combat Hostiles 2 | . . . . 2 Parts Fried 5 | . 1 . . 4 Impact Corruptions 16 | . . . . 16 Robots Melted . | . . . . . Combat Hostiles . | . . . . . Parts Melted . | . . . . . Heat Transferred 1475 | 50 300 . . 1125 Parts Sabotaged . | . . . . . Parts Stolen . | . . . . . Parts Stripped . | . . . . . Power Chain Reactions 3 | 2 1 . . . Alert | -11 -10 -10 -9 -6 ------- Run | Yrd Mat Sub Scr Fac Maximum Alert Level . | . . . . . Low Security (%) 100 | 100 100 . . 100 Level 1 . | . . . . . Level 2 . | . . . . . Level 3 . | . . . . . Level 4 . | . . . . . Level 5 . | . . . . . High Security . | . . . . . Max Security . | . . . . . Peak Influence 168 | 10 168 . . 149 Initial . | . . . . . Average 35 | 2 80 . . 13 Influence Increases 896 | 20 362 . . 514 Destroy 0b10 Robot/C 420 | . 200 . . 220 Destroy 0b10 Robot/NC 70 | 20 10 . . 40 Destroy Leader 124 | . 42 . . 82 Successful Hack 46 | . 16 . . 30 Select Force Hacks 30 | . 30 . . . Disable Machine 120 | . 30 . . 90 Destroy Structure 56 | . 4 . . 52 Lose Combat Pursuer 30 | . 30 . . . Influence Decreases 807 | 20 362 . . 425 Time Decay 627 | 20 352 . . 255 Lost Part 180 | . 10 . . 170 Squads Dispatched 9 | . 3 . . 6 Investigation 1 | . 1 . . . Extermination 4 | . . . . 4 Reinforcement 4 | . 2 . . 2 Assault . | . . . . . Garrison . | . . . . . Intercept . | . . . . . Searches Triggered . | . . . . . Construction Impeded 1 | . . . . 1 Haulers Reinforced . | . . . . . Active Scanning Responses . | . . . . . Cargo Convoy Interrupts . | . . . . . Stealth | -11 -10 -10 -9 -6 --------- Run | Yrd Mat Sub Scr Fac Distress Signals 2 | . 2 . . . Communications Jammed . | . . . . . Distress Signals . | . . . . . Times Spotted 38 | . 17 . . 21 Peak Tracking Total 6 | . 6 . . 4 Tactical Retreats 1 | . 1 . . . Traps | -11 -10 -10 -9 -6 ------- Run | Yrd Mat Sub Scr Fac Traps Triggered 1 | . . . . 1 Indirectly . | . . . . . Trap Hack Attempts . | . . . . . Triggered . | . . . . . Disarmed . | . . . . . Reprogrammed . | . . . . . Reused . | . . . . . Traps Extracted . | . . . . . Installed . | . . . . . Triggered . | . . . . . Machines | -11 -10 -10 -9 -6 ---------- Run | Yrd Mat Sub Scr Fac Machines Disabled 8 | . 2 . . 6 Max in Single Turn 6 | . 2 . . 6 Machines Repaired . | . . . . . Machines Dismantled . | . . . . . Machines Sabotaged . | . . . . . Overloaded Fab Kills . | . . . . . Hacking | -11 -10 -10 -9 -6 --------- Run | Yrd Mat Sub Scr Fac Machines Accessed 10 | . 6 . 1 3 Terminals 7 | . 5 . . 2 Fabricators . | . . . . . Repair Stations . | . . . . . Recycling Units 1 | . 1 . . . Scanalyzers 1 | . . . . 1 Garrison Access . | . . . . . Total Hacks 31 | . 14 . 8 9 Successful 22 | . 10 . 8 4 Failed 8 | . 4 . . 4 Catastrophic 1 | . . . . 1 Database Lockouts 1 | . . . . 1 Manual 14 | . 13 . . 1 Terminals 19 | . 13 . . 6 Fabricators . | . . . . . Repair Stations . | . . . . . Recycling Units 1 | . 1 . . . Scanalyzers 3 | . . . . 3 Garrison Access . | . . . . . Terminal Hacks 10 | . . . 8 2 Record 8 | . . . 8 . Emergency Access Points 1 | . . . . 1 Garrison Index 1 | . . . . 1 Fabricator Hacks . | . . . . . Repair Station Hacks . | . . . . . Recycling Unit Hacks . | . . . . . Scanalyzer 2 | . . . . 2 Retrieve Study 2 | . . . . 2 Garrison Access Hacks . | . . . . . Unauthorized Hacks 10 | . 10 . . . Terminals 9 | . 9 . . . Assimilate 1 | . 1 . . . Botnet 3 | . 3 . . . Skim 5 | . 5 . . . Fabricators . | . . . . . Repair Stations . | . . . . . Recycling Units 1 | . 1 . . . Tunnel 1 | . 1 . . . Scanalyzers . | . . . . . Garrison Access . | . . . . . Data Cores Recovered . | . . . . . Used . | . . . . . Hacking Detections 8 | . 5 . . 3 Full Trace Events . | . . . . . Feedback Events . | . . . . . Feedback Blocked . | . . . . . Robot Schematics Acquired . | . . . . . Robots Built . | . . . . . Authchips . | . . . . . Time . | . . . . . Total Robot Build Rating . | . . . . . Part Schematics Acquired . | . . . . . Parts Built . | . . . . . Authchips . | . . . . . Time . | . . . . . Total Part Build Rating . | . . . . . Part Studies Acquired 2 | . . . . 2 Parts Repaired . | . . . . . Time . | . . . . . Parts Recycled . | . . . . . Recycled Matter . | . . . . . Retrieved Matter . | . . . . . Retrieved Components . | . . . . . Parts Scanalyzed . | . . . . . Part Schematics Acquired . | . . . . . Parts Damaged . | . . . . . Bothacking | -11 -10 -10 -9 -6 ------------ Run | Yrd Mat Sub Scr Fac Used RIF Installer . | . . . . . Robots Hacked 1 | . . . . 1 Non-combat 1 | . . . . 1 Combat . | . . . . . Robot Hacks Applied 1 | . . . . 1 parse_system 1 | . . . . 1 Relay Couplers Released . | . . . . . Fabnet Peak Effective % . | . . . . . Robots Rewired . | . . . . . Allies Hacked . | . . . . . Hacks Repelled . | . . . . . Allies | -11 -10 -10 -9 -6 -------- Run | Yrd Mat Sub Scr Fac Total Allies . | . . . . . Largest Group . | . . . . . Highest-Rated Group . | . . . . . Highest-Rated Ally . | . . . . . Total Orders . | . . . . . Ally Attacks . | . . . . . Total Damage . | . . . . . Kills . | . . . . . Allies Corrupted . | . . . . . Allies Melted . | . . . . . Intel | -11 -10 -10 -9 -6 ------- Run | Yrd Mat Sub Scr Fac Active Infowar (turns) . | . . . . . Robot Analysis Total . | . . . . . Derelict Logs Recovered 1 | . . 1 . . Drone Launches . | . . . . . Drone Recoveries . | . . . . . Exploration | -11 -10 -10 -9 -6 ------------- Run | Yrd Mat Sub Scr Fac Turns Passed 4048 | 82 953 134 1038 1841 Spaces Moved 1951 | 44 401 100 757 649 Core 3 | . . . . 3 Treads . | . . . . . Legs 150 | 44 78 . . 28 Wheels 1667 | . 323 100 757 487 Hover 131 | . . . . 131 Flight . | . . . . . Fastest Speed 107 | 120 120 135 135 107 Average Speed 165 | 120 132 135 135 230 Slowest Speed 670 | 120 135 135 135 670 Overloaded Moves . | . . . . . Propulsion Burnouts . | . . . . . Robots Hopped . | . . . . . Potential Cave-ins . | . . . . . Cave-ins Triggered . | . . . . . Exploration Rate (%) 32 | 3 76 12 54 17 Regions Visited 4 Branch Regions 2 Pre-discovered Areas 2 | . 1 1 . . Known Exits Taken . | . . . . . Unknown Exits Taken 4 | 1 1 1 1 . Scrap Searched 3 | . . . 3 . Spaces Dug 3 | . . . . 3 Terrain Destroyed 119 | 11 4 . . 104 Melee 3 | . . . . 3 Projectile . | . . . . . AOE 116 | 11 4 . . 101 Terrain Rammed . | . . . . . Walls Destroyed . | . . . . . Machines Disabled . | . . . . . Actions | -11 -10 -10 -9 -6 --------- Run | Yrd Mat Sub Scr Fac Total 2568 | 55 792 99 776 846 Wait 391 | . 334 . 5 52 Move 1947 | 43 400 99 756 649 Hop . | . . . . . Pick Up 40 | 2 22 . 7 9 Fast Attach 18 | . 4 . 1 13 Attach 26 | . 2 . . 24 Detach 2 | . . . . 2 Swap 4 | . 1 . . 3 Drop 21 | . 9 . 7 5 Fire 100 | 10 20 . . 70 Melee 19 | . . . . 19 Ram . | . . . . . Kick . | . . . . . Crush . | . . . . . Escape Stasis . | . . . . . Rewire . | . . . . . Trap . | . . . . . Miscellaneous . | . . . . . Route ------- -11/Scrapyard -10/Materials (discovered 5 exits: *Mat x2 / [*Min x2] / [*Sub]) -10/Subcaves -9/Scraptown -6/Factory History --------- Turn | Location | Event 1 | -11/Scrapyard | Discovered new exit (range 3) 83 | -11/Scrapyard | Entered Materials 311 | -10/Materials | Build established: Mutant 314 | -10/Materials | Discovered new exit (range 11) 497 | -10/Materials | Discovered new exit (range 10) 497 | -10/Materials | Discovered new exit (range 14) 680 | -10/Materials | Discovered new exit (range 6) 829 | -10/Materials | Identified exit to Materials 1036 | -10/Materials | Entered Subcaves 1037 | -10/Subcaves | Approached by a straggling Scientist 1093 | -10/Subcaves | Learned location of Zion (-6) 1162 | -10/Subcaves | Scientist uncovered a shortcut to Scraptown 1170 | -10/Subcaves | Entered Scraptown 1371 | -9/Scraptown | Visited Cyclists 1394 | -9/Scraptown | Visited Awakened 1416 | -9/Scraptown | Visited Cave Peace 1493 | -9/Scraptown | Visited Shadow of the Wyrm 1513 | -9/Scraptown | Visited Red Mages 1965 | -9/Scraptown | Discovered new exit (range 5) 2208 | -9/Scraptown | Entered Factory 2208 | -6/Factory | Evolved 8 slots: Power x1, Propulsion x2, Utility x4, Weapon x1 2375 | -6/Factory | Central database locked down 2501 | -6/Factory | Build established: Gunner 2669 | -6/Factory | Lost 4 parts (1p2n1u) 2990 | -6/Factory | Lost 12 parts (4p3n3u2w) 3177 | -6/Factory | Build established: Mutant 3370 | -6/Factory | Core integrity fell below 50% 3844 | -6/Factory | Build established: Scavenger-Gunner 3995 | -6/Factory | Core integrity fell below 20% 4049 | -6/Factory | Destroyed by X-67 Chaingunner with Heavy Machine Gun Last Messages --------------- 04030_ Dropped Huge Storage Unit. 04030_ U-05 Engineer lays Concrete. 04033_ K-01 Serf collects debris. 04033_ U-05 Engineer lays Concrete. 04035_ Acquired Flexi-carbon Leg. 04036_ U-05 Engineer lays Concrete. 04036_ K-01 Serf collects debris. 04037_ U-05 Engineer lays Concrete. 04038_ The unstable cave ceiling collapses. 04038_ U-05 Engineer lays Concrete. 04040_ The unstable cave ceiling collapses. 04040_ K-01 Serf collects debris. 04040_ U-05 Engineer lays Concrete. 04040_ Acquired 2 matter. 04041_ U-05 Engineer lays Concrete. 04042_ The unstable cave ceiling collapses. 04042_ U-05 Engineer lays Concrete. 04043_ Acquired 4 matter. 04044_ System corrupted: Matter fused (-8). 04044_ U-05 Engineer lays Concrete. Map ----- +----------------------------------------------------+ | ?????????????????????????????????????????????????? | | ?????????????????????????????????????????????????? | | ?????????????????????????????????????????????????? | | ?????????????????????????????????????????????????? | | ?????????????????????????????????????????????????? | | ?????????????????????????????????????????????????? | | ?????????????????????????????????????????????????? | | ?????????????????????????????????????????????????? | | ?????????????????????????????????????????????????? | | ?????????????????????????????????????????????????? | | ?????????????????????????????????????????????????? | | ?????????????????????????????????????????????????? | | ?????????????????????????????????????????????????? | | ?????????????????????????????????????????????????? | | ?????????????????????????????????????????????????? | | ???????????????????##??#######???????????????????? | | ????????#######????# """"""" #???????????????????? | | ????????# ## ###?# """"""" #???????????????????? | | ????????# # ### """"""" #???????????????????? | | ????????? ## """"""" #???????????????????? | | ?########## ## ## #???????????????????? | | ?# # # #???????????????????? | | ?# # #???????????????????? | | ?# # #####???????????????? | | ?# #####+###### ######??????????? | | ## x @ ^ ???? | | # u |!! ###### ######??????????? | | u!!|[ %%#????#####???????????????? | | !! [ #????????????????????????? | | ###### #????????????????????????? | | #????# #?###########????????????? | | #???# #?# #????????????? | | ###+#### #???# #?# #????????????? | | # ##?###%### """ """ #????????????? | | #### # ####??# # """ """ #????????????? | | ######### # """ """ #????????????? | | + #????????????? | | # ##### # #????????????? | | ##### # #???# # [ ] #????????????? | | ????# # #######+#############????????????? | | ????####+#### # #???????????????????? | | ] ] ^ + # #???????????????????? | | # # #???????????????????? | | """ # # #???????????????????? | | ?"" / ?# # #???????????????????? | | ?"" ?# #% #???????????????????? | | ?"" ""T"??# + #???????????????????? | | ? """"??# # #???????????????????? | | ####+######## # #???????????????????? | | # = #???????????????????? | +----------------------------------------------------+ Best States ------------- Heat Dissipation 113 Energy Generation 23 Energy Capacity 460 Matter Stores 300 Matter Capacity 300 Sight Range 16 Terrain Scan Density 10 Armor Coverage 150 Weapon Shielding 66 Evasion (%) 55 Target Analysis 5 Offensive Hacking 10 Item Schematics ----------------- None Robot Schematics ------------------ None Fabricated ------------ Nothing Repaired ---------- Nothing Studied --------- Remote Datajack | -6/Factory | Hacked Wheel | -6/Factory | Hacked Alien Tech Used ----------------- None Achievements -------------- None Challenges ------------ None Game ------ Seed RagnarokGhostHarness Manual? 0 Play Time 00:43:15 Cumulative 171.8 hours Start 2026.04.03 @ 13:24:30 End 2026.04.04 @ 12:19:13 Sessions 1 Manual Loads 0 Difficulty Rogue Special Mode None Game No. 186 Rogue 184 Adventurer 2 Explorer 0 Win Type - Total 0 Types 0/0/0/0/0/0/0/0/0/0 Lore% 68 Gallery% 56 Achievement% 35 Wizard Run 0 Options --------- Layout 2 ASCII 0 Keyboard 0 Movement Arrows Keybinds 0 Fullscreen 1 Font 16/SmallcapsGlow Map View 50x49 Zoom Use 0% Tactical HUD 1 Map Filters NONE Filters NONE Steam SD RUN: 8b6f5973-8153-49d0-9a54-8fe429b8e220